Workbook

Sheet LevelbattleConfig
A1: ID | C1: Group | D1: awardDrop | E1: awardNum | F1: combatTime | G1: combatType | H1: MonsterGroupTruePower | I1: MonsterGroupPower
A2: int | C2: int[] | D2: int[] | E2: int[] | F2: float | G2: int | H2: int | I2: int
A4: 战斗组ID | B4: 使用位置 | C4: 包含的组ID （就是第二页的ID) | D4: 奖励随机掉落组 | E4: 奖励道具数量 | F4: 用时(秒） | G4: 玩法类型 1.正常 2.追逐 3.站桩 4.保卫水晶 5.至少完成x波 （406260） 6.至少坚持x秒 （406261） | H4: 怪物战斗组修为（实际） | I4: 怪物战斗组修为（表现） | J4: 评分修正 例如3人参战填75% | L4: 怪物等级上浮 | Q4: 事件ID | R4: 怪物等级
A5: 100001 | B5: 主线1-1 | C5: =A5 -> 100001 | D5: -1 | E5: -1 | F5: 120 | G5: 1 | H5: 100 | I5: 100 | K5: 1-1
A6: 100002 | B6: 主线1-1 | C6: =A6 -> 100002 | D6: -1 | E6: -1 | F6: 120 | G6: 1 | H6: 100 | I6: 100 | K6: 1-1
A7: 100003 | B7: 主线1-1 | C7: =A7 -> 100003 | D7: -1 | E7: -1 | F7: 120 | G7: 1 | H7: 100 | I7: 100 | K7: 1-1 | L7: 1
A8: 100004 | B8: boss | C8: =A8 -> 100004 | D8: -1 | E8: -1 | F8: 120 | G8: 1 | H8: 100 | I8: 100 | K8: 1-1 | L8: 1
A11: 1002 | B11: =_xlfn.TEXTJOIN("-",1,M11:N11) -> 主线-击败结界兽 | C11: 1002 | D11: -1 | E11: -1 | F11: 120 | G11: 1 | H11: 100 | I11: 100 | M11: 主线 | N11: 击败结界兽 | O11: 10004 | P11: 5 | Q11: =VLOOKUP(A11,[1]EventLinkConfig!$Y:$AM,15,FALSE) -> 10004 | R11: =VLOOKUP(Q11,[1]EventConfig!$A:$P,16,FALSE) -> 9
A12: =A11+1 -> 1003 | B12: 主线-击败痴道人 | C12: 1003 | D12: -1 | E12: -1 | F12: 120 | G12: 1 | H12: 100 | I12: 100 | M12: 主线 | N12: 击败痴道人 | O12: 10007 | P12: 15 | Q12: =VLOOKUP(A12,[1]EventLinkConfig!$Y:$AM,15,FALSE) -> 10007 | R12: =VLOOKUP(Q12,[1]EventConfig!$A:$P,16,FALSE) -> 16
A13: 1004 | B13: 主线-妖兽横行 | C13: 1004 | D13: -1 | E13: -1 | F13: 120 | G13: 1 | H13: 100 | I13: 100 | M13: 主线 | N13: 妖兽横行 | O13: 10010 | P13: 25 | Q13: 10010 | R13: =VLOOKUP(Q13,[1]EventConfig!$A:$P,16,FALSE) -> 25
A14: 1005 | B14: 主线-击败后山小妖 | C14: 1005 | D14: -1 | E14: -1 | F14: 120 | G14: 1 | H14: 100 | I14: 100 | M14: 主线 | N14: 击败后山小妖 | O14: 10015 | P14: 45 | Q14: 10015 | R14: =VLOOKUP(Q14,[1]EventConfig!$A:$P,16,FALSE) -> 46
A15: 1006 | B15: 主线-击败夜袭的妖兽 | C15: 1006 | D15: -1 | E15: -1 | F15: 120 | G15: 1 | H15: 100 | I15: 100 | M15: 主线 | N15: 击败夜袭的妖兽 | O15: 10016 | P15: 50 | Q15: 10016 | R15: =VLOOKUP(Q15,[1]EventConfig!$A:$P,16,FALSE) -> 51
A16: 1007 | B16: 主线-击败峰顶的妖王 | C16: 1007 | D16: -1 | E16: -1 | F16: 120 | G16: 1 | H16: 100 | I16: 100 | M16: 主线 | N16: 击败峰顶的妖王 | O16: 10017 | P16: 55 | Q16: 10017 | R16: =VLOOKUP(Q16,[1]EventConfig!$A:$P,16,FALSE) -> 56
A17: 1008 | B17: 主线-击败仙山的阵眼妖兽 | C17: 1008 | D17: -1 | E17: -1 | F17: 120 | G17: 1 | H17: 100 | I17: 100 | M17: 主线 | N17: 击败仙山的阵眼妖兽 | O17: 10023 | P17: 85 | Q17: 10023 | R17: =VLOOKUP(Q17,[1]EventConfig!$A:$P,16,FALSE) -> 86
A18: 1009 | B18: 主线-击杀灵兽获得天肥 | C18: 1009 | D18: -1 | E18: -1 | F18: 120 | G18: 1 | H18: 100 | I18: 100 | M18: 主线 | N18: 击杀灵兽获得天肥 | O18: 10025 | P18: 95 | Q18: 10025 | R18: =VLOOKUP(Q18,[1]EventConfig!$A:$P,16,FALSE) -> 101
A19: 1010 | B19: =_xlfn.TEXTJOIN("-",1,M19:N19) -> 主线-击败小麻雀的幻影 | C19: =A19 -> 1010 | D19: -1 | E19: -1 | F19: 120 | G19: 1 | H19: 100 | I19: 100 | M19: 主线 | N19: 击败小麻雀的幻影 | O19: 10027 | P19: 100 | Q19: =VLOOKUP(A19,[1]EventLinkConfig!$Y:$AM,15,FALSE) -> 10027 | R19: =VLOOKUP(Q19,[1]EventConfig!$A:$P,16,FALSE) -> 121
A20: 1011 | B20: =_xlfn.TEXTJOIN("-",1,M20:N20) -> 主线-击败痴道人的幻影 | C20: =A20 -> 1011 | D20: -1 | E20: -1 | F20: 120 | G20: 1 | H20: 100 | I20: 100 | M20: 主线 | N20: 击败痴道人的幻影 | O20: 10027 | P20: 110 | Q20: =VLOOKUP(A20,[1]EventLinkConfig!$Y:$AM,15,FALSE) -> 10027 | R20: =VLOOKUP(Q20,[1]EventConfig!$A:$P,16,FALSE) -> 121
A21: 1012 | B21: =_xlfn.TEXTJOIN("-",1,M21:N21) -> 主线-樗木之灵的幻影 | C21: =A21 -> 1012 | D21: -1 | E21: -1 | F21: 120 | G21: 1 | H21: 100 | I21: 100 | M21: 主线 | N21: 樗木之灵的幻影 | O21: 10027 | P21: 120 | Q21: =VLOOKUP(A21,[1]EventLinkConfig!$Y:$AM,15,FALSE) -> 10027 | R21: =VLOOKUP(Q21,[1]EventConfig!$A:$P,16,FALSE) -> 121
A22: 1013 | B22: =_xlfn.TEXTJOIN("-",1,M22:N22) -> 主线-击败心魔 | C22: =A22 -> 1013 | D22: -1 | E22: -1 | F22: 120 | G22: 1 | H22: 100 | I22: 100 | M22: 主线 | N22: 击败心魔 | O22: 10030 | P22: 140 | Q22: =VLOOKUP(A22,[1]EventLinkConfig!$Y:$AM,15,FALSE) -> 10030 | R22: =VLOOKUP(Q22,[1]EventConfig!$A:$P,16,FALSE) -> 141
A23: 1014 | B23: 主线-击败北海妖兽2 | C23: 1014 | D23: -1 | E23: -1 | F23: 120 | G23: 1 | H23: 100 | I23: 100 | M23: 主线 | N23: 击败北海妖兽2 | O23: 10031 | P23: 150 | Q23: =VLOOKUP(A23,[1]EventLinkConfig!$Y:$AM,15,FALSE) -> 10031 | R23: =VLOOKUP(Q23,[1]EventConfig!$A:$P,16,FALSE) -> 151
A24: 1015 | B24: =_xlfn.TEXTJOIN("-",1,M24:N24) -> 主线-击败北海妖兽1 | C24: =A24 -> 1015 | D24: -1 | E24: -1 | F24: 120 | G24: 1 | H24: 100 | I24: 100 | M24: 主线 | N24: 击败北海妖兽1 | O24: 10010 | P24: 25 | Q24: 10010 | R24: =VLOOKUP(Q24,[1]EventConfig!$A:$P,16,FALSE) -> 25
A25: 1016 | B25: =_xlfn.TEXTJOIN("-",1,M25:N25) -> 主线-与樗木之灵切磋 | C25: =A25 -> 1016 | D25: -1 | E25: -1 | F25: 120 | G25: 1 | H25: 100 | I25: 100 | M25: 主线 | N25: 与樗木之灵切磋 | O25: 10020 | P25: 65 | Q25: =VLOOKUP(A25,[1]EventLinkConfig!$Y:$AM,15,FALSE) -> 10020 | R25: =VLOOKUP(Q25,[1]EventConfig!$A:$P,16,FALSE) -> 69
A27: 2001 | B27: 命运峰-第1层 | C27: =A27 -> 2001 | D27: -1 | E27: -1 | F27: 120 | G27: 1 | H27: 100 | I27: 100
A28: 2002 | B28: 命运峰-第2层 | C28: =A28 -> 2002 | D28: -1 | E28: -1 | F28: 120 | G28: 1 | H28: 100 | I28: 100
A29: 2003 | B29: 命运峰-第3层 | C29: 2003 | D29: -1 | E29: -1 | F29: 120 | G29: 1 | H29: 100 | I29: 100
A30: 2004 | B30: 命运峰-第4层 | C30: 2004 | D30: -1 | E30: -1 | F30: 120 | G30: 1 | H30: 100 | I30: 100
A31: 2005 | B31: 命运峰-第5层 | C31: 2005 | D31: -1 | E31: -1 | F31: 120 | G31: 1 | H31: 100 | I31: 100
A32: 2006 | B32: 命运峰-第6层 | C32: 2006 | D32: -1 | E32: -1 | F32: 120 | G32: 1 | H32: 100 | I32: 100
A33: 2007 | B33: 命运峰-第7层 | C33: 2007 | D33: -1 | E33: -1 | F33: 120 | G33: 1 | H33: 100 | I33: 100
A34: 2008 | B34: 命运峰-第8层 | C34: 2008 | D34: -1 | E34: -1 | F34: 120 | G34: 1 | H34: 100 | I34: 100
A35: 2009 | B35: 命运峰-第9层 | C35: 2009 | D35: -1 | E35: -1 | F35: 120 | G35: 1 | H35: 100 | I35: 100
A36: 2010 | B36: 命运峰-第10层 | C36: 2010 | D36: -1 | E36: -1 | F36: 120 | G36: 1 | H36: 100 | I36: 100
A37: 2011 | B37: 命运峰-第11层 | C37: 2011 | D37: -1 | E37: -1 | F37: 120 | G37: 1 | H37: 100 | I37: 100
A38: 2012 | B38: 命运峰-第12层 | C38: 2012 | D38: -1 | E38: -1 | F38: 120 | G38: 1 | H38: 100 | I38: 100
A39: 2013 | B39: 命运峰-第13层 | C39: 2013 | D39: -1 | E39: -1 | F39: 120 | G39: 1 | H39: 100 | I39: 100
A40: 2014 | B40: 命运峰-第14层 | C40: 2014 | D40: -1 | E40: -1 | F40: 120 | G40: 1 | H40: 100 | I40: 100
A41: 2015 | B41: 命运峰-第15层 | C41: 2015 | D41: -1 | E41: -1 | F41: 120 | G41: 1 | H41: 100 | I41: 100
A42: 2016 | B42: 命运峰-第16层 | C42: 2016 | D42: -1 | E42: -1 | F42: 120 | G42: 1 | H42: 100 | I42: 100
A43: 2017 | B43: 命运峰-第17层 | C43: 2017 | D43: -1 | E43: -1 | F43: 120 | G43: 1 | H43: 100 | I43: 100
A44: 2018 | B44: 命运峰-第18层 | C44: 2018 | D44: -1 | E44: -1 | F44: 120 | G44: 1 | H44: 100 | I44: 100
A45: 2019 | B45: 命运峰-第19层 | C45: 2019 | D45: -1 | E45: -1 | F45: 120 | G45: 1 | H45: 100 | I45: 100
A46: 2020 | B46: 命运峰-第20层 | C46: 2020 | D46: -1 | E46: -1 | F46: 120 | G46: 1 | H46: 100 | I46: 100
A48: 3001 | B48: =_xlfn.TEXTJOIN("-",1,M48:N48) -> 道侣雀灵儿-击败风妖 | C48: =A48 -> 3001 | D48: -1 | E48: -1 | F48: 120 | G48: 1 | H48: 100 | I48: 100 | M48: 道侣雀灵儿 | N48: 击败风妖 | O48: 6003 | P48: =VLOOKUP(O48,[1]EventConfig!$A:$P,16,FALSE) -> 15 | Q48: =VLOOKUP(A48,[1]EventLinkConfig!$Y:$AM,15,FALSE) -> 6003 | R48: =VLOOKUP(Q48,[1]EventConfig!$A:$P,16,FALSE) -> 15
A49: 3002 | B49: =_xlfn.TEXTJOIN("-",1,M49:N49) -> 道侣雀灵儿-击败大风妖兽 | C49: =A49 -> 3002 | D49: -1 | E49: -1 | F49: 120 | G49: 1 | H49: 100 | I49: 100 | M49: 道侣雀灵儿 | N49: 击败大风妖兽 | O49: 6003 | P49: =VLOOKUP(O49,[1]EventConfig!$A:$P,16,FALSE) -> 15 | Q49: =VLOOKUP(A49,[1]EventLinkConfig!$Y:$AM,15,FALSE) -> 6005 | R49: =VLOOKUP(Q49,[1]EventConfig!$A:$P,16,FALSE) -> 25
A50: =A49+1 -> 3003 | B50: =_xlfn.TEXTJOIN("-",1,M50:N50) -> 道侣云枝-击败风妖 | C50: =A50 -> 3003 | D50: -1 | E50: -1 | F50: 120 | G50: 1 | H50: 100 | I50: 100 | M50: 道侣云枝 | N50: 击败风妖 | O50: 6011 | P50: =VLOOKUP(O50,[1]EventConfig!$A:$P,16,FALSE) -> 20 | Q50: 6011 | R50: =VLOOKUP(Q50,[1]EventConfig!$A:$P,16,FALSE) -> 20
A51: 3004 | B51: =_xlfn.TEXTJOIN("-",1,M51:N51) -> 道侣云枝-击败风妖2 | C51: =A51 -> 3004 | D51: -1 | E51: -1 | F51: 120 | G51: 1 | H51: 100 | I51: 100 | M51: 道侣云枝 | N51: 击败风妖2 | O51: 6012 | P51: =VLOOKUP(O51,[1]EventConfig!$A:$P,16,FALSE) -> 30 | Q51: =VLOOKUP(A51,[1]EventLinkConfig!$Y:$AM,15,FALSE) -> 6012 | R51: =VLOOKUP(Q51,[1]EventConfig!$A:$P,16,FALSE) -> 30
A52: 3005 | B52: =_xlfn.TEXTJOIN("-",1,M52:N52) -> 道侣云枝-击败风妖3 | C52: =A52 -> 3005 | D52: -1 | E52: -1 | F52: 120 | G52: 1 | H52: 100 | I52: 100 | M52: 道侣云枝 | N52: 击败风妖3 | O52: 6013 | P52: =VLOOKUP(O52,[1]EventConfig!$A:$P,16,FALSE) -> 40 | Q52: =VLOOKUP(A52,[1]EventLinkConfig!$Y:$AM,15,FALSE) -> 6012 | R52: =VLOOKUP(Q52,[1]EventConfig!$A:$P,16,FALSE) -> 30
A53: 3006 | B53: =_xlfn.TEXTJOIN("-",1,M53:N53) -> 道侣云枝-击败风妖4 | C53: =A53 -> 3006 | D53: -1 | E53: -1 | F53: 120 | G53: 1 | H53: 100 | I53: 100 | M53: 道侣云枝 | N53: 击败风妖4 | O53: 6013 | P53: =VLOOKUP(O53,[1]EventConfig!$A:$P,16,FALSE) -> 40 | Q53: =VLOOKUP(A53,[1]EventLinkConfig!$Y:$AM,15,FALSE) -> 6013 | R53: =VLOOKUP(Q53,[1]EventConfig!$A:$P,16,FALSE) -> 40
A54: 3007 | B54: =_xlfn.TEXTJOIN("-",1,M54:N54) -> 道侣云枝-击败风妖4 | C54: =A54 -> 3007 | D54: -1 | E54: -1 | F54: 120 | G54: 1 | H54: 100 | I54: 100 | M54: 道侣云枝 | N54: 击败风妖4 | O54: 6015 | P54: =VLOOKUP(O54,[1]EventConfig!$A:$P,16,FALSE) -> 60 | Q54: =VLOOKUP(A54,[1]EventLinkConfig!$Y:$AM,15,FALSE) -> 6015 | R54: =VLOOKUP(Q54,[1]EventConfig!$A:$P,16,FALSE) -> 60
A55: 3008 | B55: =_xlfn.TEXTJOIN("-",1,M55:N55) -> 道侣云枝-击败风妖5 | C55: =A55 -> 3008 | D55: -1 | E55: -1 | F55: 120 | G55: 1 | H55: 100 | I55: 100 | M55: 道侣云枝 | N55: 击败风妖5 | O55: 6015 | P55: =VLOOKUP(O55,[1]EventConfig!$A:$P,16,FALSE) -> 60 | Q55: =VLOOKUP(A55,[1]EventLinkConfig!$Y:$AM,15,FALSE) -> 6015 | R55: =VLOOKUP(Q55,[1]EventConfig!$A:$P,16,FALSE) -> 60
A56: 3009 | B56: =_xlfn.TEXTJOIN("-",1,M56:N56) -> 道侣婉溪-击败抢走玉佩的小妖 | C56: =A56 -> 3009 | D56: -1 | E56: -1 | F56: 120 | G56: 1 | H56: 100 | I56: 100 | M56: 道侣婉溪 | N56: 击败抢走玉佩的小妖 | O56: 6034 | P56: =VLOOKUP(O56,[1]EventConfig!$A:$P,16,FALSE) -> 120 | Q56: 6034 | R56: =VLOOKUP(Q56,[1]EventConfig!$A:$P,16,FALSE) -> 120
A57: 3010 | B57: =_xlfn.TEXTJOIN("-",1,M57:N57) -> 道侣婉溪-击败溪边水灵 | C57: =A57 -> 3010 | D57: -1 | E57: -1 | F57: 120 | G57: 1 | H57: 100 | I57: 100 | M57: 道侣婉溪 | N57: 击败溪边水灵 | P57: =VLOOKUP(O57,[1]EventConfig!$A:$P,16,FALSE) ->  | Q57: =VLOOKUP(A57,[1]EventLinkConfig!$Y:$AM,15,FALSE) -> 6035 | R57: =VLOOKUP(Q57,[1]EventConfig!$A:$P,16,FALSE) -> 130
A58: 3011 | B58: =_xlfn.TEXTJOIN("-",1,M58:N58) -> 道侣许由-击败守护灵草的小妖 | C58: =A58 -> 3011 | D58: -1 | E58: -1 | F58: 120 | G58: 1 | H58: 100 | I58: 100 | M58: 道侣许由 | N58: 击败守护灵草的小妖 | P58: =VLOOKUP(O58,[1]EventConfig!$A:$P,16,FALSE) ->  | Q58: 6042 | R58: =VLOOKUP(Q58,[1]EventConfig!$A:$P,16,FALSE) -> 130
A59: 3012 | B59: =_xlfn.TEXTJOIN("-",1,M59:N59) -> 道侣许由-击败秘境灵草守卫 | C59: =A59 -> 3012 | D59: -1 | E59: -1 | F59: 120 | G59: 1 | H59: 100 | I59: 100 | M59: 道侣许由 | N59: 击败秘境灵草守卫 | P59: =VLOOKUP(O59,[1]EventConfig!$A:$P,16,FALSE) ->  | Q59: 6044 | R59: =VLOOKUP(Q59,[1]EventConfig!$A:$P,16,FALSE) -> 150
A60: 3013 | B60: =_xlfn.TEXTJOIN("-",1,M60:N60) -> 道侣疯道人-击败果园守卫 | C60: =A60 -> 3013 | D60: -1 | E60: -1 | F60: 120 | G60: 1 | H60: 100 | I60: 100 | M60: 道侣疯道人 | N60: 击败果园守卫 | P60: =VLOOKUP(O60,[1]EventConfig!$A:$P,16,FALSE) ->  | Q60: 6052 | R60: =VLOOKUP(Q60,[1]EventConfig!$A:$P,16,FALSE) -> 160
A61: 3014 | B61: =_xlfn.TEXTJOIN("-",1,M61:N61) -> 道侣疯道人-帮助疯道人驱妖 | C61: =A61 -> 3014 | D61: -1 | E61: -1 | F61: 120 | G61: 1 | H61: 100 | I61: 100 | M61: 道侣疯道人 | N61: 帮助疯道人驱妖 | P61: =VLOOKUP(O61,[1]EventConfig!$A:$P,16,FALSE) ->  | Q61: =VLOOKUP(A61,[1]EventLinkConfig!$Y:$AM,15,FALSE) -> 6053 | R61: =VLOOKUP(Q61,[1]EventConfig!$A:$P,16,FALSE) -> 170
A62: 3015 | B62: =_xlfn.TEXTJOIN("-",1,M62:N62) -> 道侣疯道人-击败疯道人 | C62: =A62 -> 3015 | D62: -1 | E62: -1 | F62: 120 | G62: 1 | H62: 100 | I62: 100 | M62: 道侣疯道人 | N62: 击败疯道人 | P62: =VLOOKUP(O62,[1]EventConfig!$A:$P,16,FALSE) ->  | Q62: =VLOOKUP(A62,[1]EventLinkConfig!$Y:$AM,15,FALSE) -> 6055 | R62: =VLOOKUP(Q62,[1]EventConfig!$A:$P,16,FALSE) -> 190
A64: 10001 | B64: =_xlfn.TEXTJOIN("-",1,M64:N64) -> 引导 -开局第一场战斗 | C64: 10001 | D64: -1 | E64: -1 | F64: 120 | G64: 1 | H64: 100 | I64: 100 | M64: 引导 | N64: 开局第一场战斗 | O64: 10004 | P64: 5
A66: 4001 | B66: =_xlfn.TEXTJOIN("-",1,M66:N66) -> 支线-海岸异象-妖物调查 | C66: =A66 -> 4001 | D66: -1 | E66: -1 | F66: 120 | G66: 1 | H66: 100 | I66: 100 | M66: 支线-海岸异象 | N66: 妖物调查 | P66: 30 | Q66: =VLOOKUP(A66,[1]EventLinkConfig!$Y:$AM,15,FALSE) -> 9112 | R66: =VLOOKUP(Q66,[1]EventConfig!$A:$P,16,FALSE) -> 1
A67: 4002 | B67: 支线-幽魂-幽魂石守护兽 | C67: 4002 | D67: -1 | E67: -1 | F67: 120 | G67: 1 | H67: 100 | I67: 100 | M67: 支线-幽魂 | N67: 幽魂石守护兽 | P67: 60 | Q67: =VLOOKUP(A67,[1]EventLinkConfig!$Y:$AM,15,FALSE) -> 9115 | R67: =VLOOKUP(Q67,[1]EventConfig!$A:$P,16,FALSE) -> 1
A68: 4003 | B68: 支线-馨儿-迷雾妖怪 | C68: 4003 | D68: -1 | E68: -1 | F68: 120 | G68: 1 | H68: 100 | I68: 100 | M68: 支线-馨儿 | N68: 迷雾妖怪 | P68: 90 | Q68: =VLOOKUP(A68,[1]EventLinkConfig!$Y:$AM,15,FALSE) -> 9118 | R68: =VLOOKUP(Q68,[1]EventConfig!$A:$P,16,FALSE) -> 5
A69: 4004 | B69: 支线-馨儿-发现信使 | C69: 4004 | D69: -1 | E69: -1 | F69: 120 | G69: 1 | H69: 100 | I69: 100 | M69: 支线-馨儿 | N69: 发现信使 | P69: 110 | Q69: =VLOOKUP(A69,[1]EventLinkConfig!$Y:$AM,15,FALSE) -> 9119 | R69: =VLOOKUP(Q69,[1]EventConfig!$A:$P,16,FALSE) -> 5
A70: 4005 | B70: 支线-馨儿-发现信使 | C70: 4005 | D70: -1 | E70: -1 | F70: 120 | G70: 1 | H70: 100 | I70: 100 | M70: 支线-馨儿 | N70: 发现信使 | P70: 120 | Q70: =VLOOKUP(A70,[1]EventLinkConfig!$Y:$AM,15,FALSE) -> 9119 | R70: =VLOOKUP(Q70,[1]EventConfig!$A:$P,16,FALSE) -> 5
A71: 4006 | B71: 支线-馨儿-风灵鸟的宝藏 | C71: 4006 | D71: -1 | E71: -1 | F71: 120 | G71: 1 | H71: 100 | I71: 100 | M71: 支线-馨儿 | N71: 风灵鸟的宝藏 | P71: 130 | Q71: =VLOOKUP(A71,[1]EventLinkConfig!$Y:$AM,15,FALSE) -> 9120 | R71: =VLOOKUP(Q71,[1]EventConfig!$A:$P,16,FALSE) -> 11
A72: 4007 | B72: 支线-馨儿-浮岛灵泉的净化 | C72: 4007 | D72: -1 | E72: -1 | F72: 120 | G72: 1 | H72: 100 | I72: 100 | M72: 支线-馨儿 | N72: 浮岛灵泉的净化 | P72: 140 | Q72: =VLOOKUP(A72,[1]EventLinkConfig!$Y:$AM,15,FALSE) -> 9121 | R72: =VLOOKUP(Q72,[1]EventConfig!$A:$P,16,FALSE) -> 11
A73: 4008 | B73: 支线-馨儿-浮岛盗修的阴谋 | C73: 4008 | D73: -1 | E73: -1 | F73: 120 | G73: 1 | H73: 100 | I73: 100 | M73: 支线-馨儿 | N73: 浮岛盗修的阴谋 | P73: 150 | Q73: =VLOOKUP(A73,[1]EventLinkConfig!$Y:$AM,15,FALSE) -> 9122 | R73: =VLOOKUP(Q73,[1]EventConfig!$A:$P,16,FALSE) -> 11
A74: 4009 | B74: 支线-柳轻烟-找到血海宗的人 | C74: 4009 | D74: -1 | E74: -1 | F74: 120 | G74: 1 | H74: 100 | I74: 100 | M74: 支线-柳轻烟 | N74: 找到血海宗的人 | P74: 160 | Q74: =VLOOKUP(A74,[1]EventLinkConfig!$Y:$AM,15,FALSE) -> 9124 | R74: =VLOOKUP(Q74,[1]EventConfig!$A:$P,16,FALSE) -> 21
A75: 4010 | B75: =_xlfn.TEXTJOIN("-",1,M75:N75) -> 支线-柳轻烟-找到血海宗的人2 | C75: =A75 -> 4010 | D75: -1 | E75: -1 | F75: 120 | G75: 1 | H75: 100 | I75: 100 | M75: 支线-柳轻烟 | N75: 找到血海宗的人2 | P75: 170 | Q75: =VLOOKUP(A75,[1]EventLinkConfig!$Y:$AM,15,FALSE) -> 9125 | R75: =VLOOKUP(Q75,[1]EventConfig!$A:$P,16,FALSE) -> 21
A76: 4011 | B76: 支线-馨儿-灵花 | C76: 4011 | D76: -1 | E76: -1 | F76: 120 | G76: 1 | H76: 100 | I76: 100 | M76: 支线-馨儿 | N76: 灵花 | P76: 180 | Q76: =VLOOKUP(A76,[1]EventLinkConfig!$Y:$AM,15,FALSE) -> 9127 | R76: =VLOOKUP(Q76,[1]EventConfig!$A:$P,16,FALSE) -> 31
A77: 4012 | B77: 支线-馨儿-散修劫掠 | C77: 4012 | D77: -1 | E77: -1 | F77: 120 | G77: 1 | H77: 100 | I77: 100 | M77: 支线-馨儿 | N77: 散修劫掠 | P77: 190 | Q77: =VLOOKUP(A77,[1]EventLinkConfig!$Y:$AM,15,FALSE) -> 9128 | R77: =VLOOKUP(Q77,[1]EventConfig!$A:$P,16,FALSE) -> 31
A78: 4013 | B78: 支线-馨儿-散修劫掠2 | C78: 4013 | D78: -1 | E78: -1 | F78: 120 | G78: 1 | H78: 100 | I78: 100 | M78: 支线-馨儿 | N78: 散修劫掠2 | P78: 200 | Q78: =VLOOKUP(A78,[1]EventLinkConfig!$Y:$AM,15,FALSE) -> 9129 | R78: =VLOOKUP(Q78,[1]EventConfig!$A:$P,16,FALSE) -> 31
A79: 4014 | B79: 支线-楚云缪-青狼散人 | C79: 4014 | D79: -1 | E79: -1 | F79: 120 | G79: 1 | H79: 100 | I79: 100 | M79: 支线-楚云缪 | N79: 青狼散人 | P79: 210 | Q79: =VLOOKUP(A79,[1]EventLinkConfig!$Y:$AM,15,FALSE) -> 9132 | R79: =VLOOKUP(Q79,[1]EventConfig!$A:$P,16,FALSE) -> 31
A80: 4015 | B80: 支线-血海宗的掠夺-血海宗的掠夺 | C80: 4015 | D80: -1 | E80: -1 | F80: 120 | G80: 1 | H80: 100 | I80: 100 | M80: 支线-血海宗的掠夺 | N80: 血海宗的掠夺 | P80: 220 | Q80: =VLOOKUP(A80,[1]EventLinkConfig!$Y:$AM,15,FALSE) -> 9133 | R80: =VLOOKUP(Q80,[1]EventConfig!$A:$P,16,FALSE) -> 41
A81: 4016 | B81: 支线-林风-逃离追杀 | C81: 4016 | D81: -1 | E81: -1 | F81: 120 | G81: 1 | H81: 100 | I81: 100 | M81: 支线-林风 | N81: 逃离追杀 | P81: 230 | Q81: =VLOOKUP(A81,[1]EventLinkConfig!$Y:$AM,15,FALSE) -> 9134 | R81: =VLOOKUP(Q81,[1]EventConfig!$A:$P,16,FALSE) -> 41
A82: 4017 | B82: 支线-林风-血海宗弟子 | C82: 4017 | D82: -1 | E82: -1 | F82: 120 | G82: 1 | H82: 100 | I82: 100 | M82: 支线-林风 | N82: 血海宗弟子 | P82: 240 | Q82: =VLOOKUP(A82,[1]EventLinkConfig!$Y:$AM,15,FALSE) -> 9135 | R82: =VLOOKUP(Q82,[1]EventConfig!$A:$P,16,FALSE) -> 41
A83: 4018 | B83: 支线-林风-血海宗弟子 | C83: 4018 | D83: -1 | E83: -1 | F83: 120 | G83: 1 | H83: 100 | I83: 100 | M83: 支线-林风 | N83: 血海宗弟子 | P83: 250 | Q83: =VLOOKUP(A83,[1]EventLinkConfig!$Y:$AM,15,FALSE) -> 9135 | R83: =VLOOKUP(Q83,[1]EventConfig!$A:$P,16,FALSE) -> 41
A84: 4019 | B84: 支线-林风-血海宗弟子 | C84: 4019 | D84: -1 | E84: -1 | F84: 120 | G84: 1 | H84: 100 | I84: 100 | M84: 支线-林风 | N84: 血海宗弟子 | P84: 260 | Q84: =VLOOKUP(A84,[1]EventLinkConfig!$Y:$AM,15,FALSE) -> 9135 | R84: =VLOOKUP(Q84,[1]EventConfig!$A:$P,16,FALSE) -> 41
A85: 4020 | B85: 支线-林风后续-夺晶之战 | C85: 4020 | D85: -1 | E85: -1 | F85: 120 | G85: 1 | H85: 100 | I85: 100 | M85: 支线-林风后续 | N85: 夺晶之战 | P85: 270 | Q85: =VLOOKUP(A85,[1]EventLinkConfig!$Y:$AM,15,FALSE) -> 9139 | R85: =VLOOKUP(Q85,[1]EventConfig!$A:$P,16,FALSE) -> 61
A86: 4021 | B86: 支线-林风后续-夺晶之战 | C86: 4021 | D86: -1 | E86: -1 | F86: 120 | G86: 1 | H86: 100 | I86: 100 | M86: 支线-林风后续 | N86: 夺晶之战 | P86: 280 | Q86: =VLOOKUP(A86,[1]EventLinkConfig!$Y:$AM,15,FALSE) -> 9139 | R86: =VLOOKUP(Q86,[1]EventConfig!$A:$P,16,FALSE) -> 61
A87: 4022 | B87: 支线-林风后续-夺晶之战2-援军 | C87: 4022 | D87: -1 | E87: -1 | F87: 120 | G87: 1 | H87: 100 | I87: 100 | M87: 支线-林风后续 | N87: 夺晶之战2-援军 | P87: 290 | Q87: =VLOOKUP(A87,[1]EventLinkConfig!$Y:$AM,15,FALSE) -> 9140 | R87: =VLOOKUP(Q87,[1]EventConfig!$A:$P,16,FALSE) -> 61
A88: 4023 | B88: 支线-林风-消灭妖邪 | C88: 4023 | D88: -1 | E88: -1 | F88: 120 | G88: 1 | H88: 100 | I88: 100 | M88: 支线-林风 | N88: 消灭妖邪 | P88: 300 | Q88: 9142 | R88: =VLOOKUP(Q88,[1]EventConfig!$A:$P,16,FALSE) -> 81
A89: 4024 | B89: 支线-仙山异样-消灭仙山西边的妖物 | C89: 4024 | D89: -1 | E89: -1 | F89: 120 | G89: 1 | H89: 100 | I89: 100 | M89: 支线-仙山异样 | N89: 消灭仙山西边的妖物 | P89: 300 | Q89: 9144 | R89: =VLOOKUP(Q89,[1]EventConfig!$A:$P,16,FALSE) -> 111
A90: 4025 | B90: =_xlfn.TEXTJOIN("-",1,M90:N90) -> 支线-仙山异样-仙山异样的秘密 | C90: =A90 -> 4025 | D90: -1 | E90: -1 | F90: 120 | G90: 1 | H90: 100 | I90: 100 | M90: 支线-仙山异样 | N90: 仙山异样的秘密 | P90: 300 | Q90: =VLOOKUP(A90,[1]EventLinkConfig!$Y:$AM,15,FALSE) -> 9145 | R90: =VLOOKUP(Q90,[1]EventConfig!$A:$P,16,FALSE) -> 131
A92: 5001 | B92: =_xlfn.TEXTJOIN("-",1,M92:N92) -> 通用-法宝掉落-品质1 | C92: =A92 -> 5001 | D92: -1 | E92: -1 | F92: 120 | G92: 1 | H92: 100 | I92: 100 | M92: 通用-法宝掉落 | N92: 品质1 | P92: -1 | Q92: 101
A93: =A92+1 -> 5002 | B93: =_xlfn.TEXTJOIN("-",1,M93:N93) -> 通用-法宝掉落-品质2 | C93: =A93 -> 5002 | D93: -1 | E93: -1 | F93: 120 | G93: 1 | H93: 100 | I93: 100 | M93: 通用-法宝掉落 | N93: 品质2 | P93: -1 | Q93: 110
A94: =A93+1 -> 5003 | B94: 通用-法宝掉落-品质3 | C94: 5003 | D94: -1 | E94: -1 | F94: 120 | G94: 1 | H94: 100 | I94: 100 | M94: 通用-法宝掉落 | N94: 品质3 | P94: -1 | Q94: 119
A95: =A94+1 -> 5004 | B95: =_xlfn.TEXTJOIN("-",1,M95:N95) -> 通用-法宝掉落-品质4 | C95: =A95 -> 5004 | D95: -1 | E95: -1 | F95: 120 | G95: 1 | H95: 100 | I95: 100 | M95: 通用-法宝掉落 | N95: 品质4 | P95: -1 | Q95: 128
A96: =A95+1 -> 5005 | B96: =_xlfn.TEXTJOIN("-",1,M96:N96) -> 通用-法宝掉落-品质5 | C96: =A96 -> 5005 | D96: -1 | E96: -1 | F96: 120 | G96: 1 | H96: 100 | I96: 100 | M96: 通用-法宝掉落 | N96: 品质5 | P96: -1 | Q96: 137
A97: =A96+1 -> 5006 | B97: 通用-功法掉落-品质1 | C97: 5006 | D97: -1 | E97: -1 | F97: 120 | G97: 1 | H97: 100 | I97: 100 | M97: 通用-功法掉落 | N97: 品质1 | P97: -1 | Q97: 102
A98: 5007 | B98: 通用-功法掉落-品质2 | C98: 5007 | D98: -1 | E98: -1 | F98: 120 | G98: 1 | H98: 100 | I98: 100 | M98: 通用-功法掉落 | N98: 品质2 | P98: -1 | Q98: 111
A99: 5008 | B99: 通用-功法掉落-品质3 | C99: 5008 | D99: -1 | E99: -1 | F99: 120 | G99: 1 | H99: 100 | I99: 100 | M99: 通用-功法掉落 | N99: 品质3 | P99: -1 | Q99: 120
A100: 5009 | B100: 通用-功法掉落-品质4 | C100: 5009 | D100: -1 | E100: -1 | F100: 120 | G100: 1 | H100: 100 | I100: 100 | M100: 通用-功法掉落 | N100: 品质4 | P100: -1 | Q100: 129
A101: 5010 | B101: =_xlfn.TEXTJOIN("-",1,M101:N101) -> 通用-功法掉落-品质5 | C101: =A101 -> 5010 | D101: -1 | E101: -1 | F101: 120 | G101: 1 | H101: 100 | I101: 100 | M101: 通用-功法掉落 | N101: 品质5 | P101: -1 | Q101: 138

Sheet GroupConfig
A1: ID | C1: GroupMonsterLevel | D1: GroupMonster | E1: hpQiangDu | F1: attQiangDu | G1: duipingQiangDu | H1: levelAdd
A2: int | C2: int[] | D2: int[] | E2: int[] | F2: int[] | G2: int[] | H2: int[]
A4: 组ID | B4: 常用阵容ID | C4: 具体怪物等级 -1代表跟随玩家等级 -1后面可填动态修正等级 | D4: 每组具体怪 | E4: 每个怪的比例强度 一个都不填就是默认强度 | F4: 攻击强度 | G4: 对拼强度 | H4: 等级额外添加值 | I4: 怪物1 | J4: 怪物2 | K4: 怪物3 | L4: 怪物1生存强度 | M4: 怪物2生存强度 | N4: 怪物3生存强度 | O4: 怪物1攻击强度 | P4: 怪物2攻击强度 | Q4: 怪物3攻击强度 | R4: 怪物1对拼强度 | S4: 怪物2对拼强度 | T4: 怪物3对拼强度 | U4: 怪物1等级降低 | V4: 怪物2等级降低 | W4: 怪物3等级降低
A5: 100001 | B5: 100001 | C5: -1 | D5: =_xlfn.TEXTJOIN(";",1,I5:K5) -> 1002 | E5: =_xlfn.TEXTJOIN(";",1,L5:N5) ->  | F5: =_xlfn.TEXTJOIN(";",1,O5:Q5) ->  | G5: =_xlfn.TEXTJOIN(";",1,R5:T5) ->  | H5: =_xlfn.TEXTJOIN(";",1,U5:W5) ->  | I5: 1002
A6: 100002 | B6: 100002 | C6: -1 | D6: =_xlfn.TEXTJOIN(";",1,I6:K6) -> 1006 | E6: =_xlfn.TEXTJOIN(";",1,L6:N6) ->  | F6: =_xlfn.TEXTJOIN(";",1,O6:Q6) ->  | G6: =_xlfn.TEXTJOIN(";",1,R6:T6) ->  | H6: =_xlfn.TEXTJOIN(";",1,U6:W6) ->  | I6: 1006
A7: 100003 | B7: 100003 | C7: -1 | D7: 1003 | I7: 1003
A8: 100004 | B8: 100004 | C8: -1 | D8: 1004 | I8: 1004 | AA8: 等模型来了再配置
A9: 100005 | B9: 100005 | C9: -1 | D9: 1005 | I9: 1005 | AA9: 9002
A10: 100006 | B10: 100006 | C10: -1 | D10: 1002 | I10: 1002 | AA10: 9001
A11: 100007 | B11: 100007 | C11: -1 | D11: 1003;1002 | E11: 90;30 | F11: 77;26 | G11: 75;25 | H11: 0;0 | I11: 1003 | J11: 1002 | L11: 90 | M11: 30 | O11: 77 | P11: 26 | R11: 75 | S11: 25 | U11: 0 | V11: 0 | AA11: 9003
A12: 100008 | B12: 100008 | C12: -1 | D12: 1004;1006 | E12: 90;30 | F12: 77;26 | G12: 75;25 | H12: 0;0 | I12: 1004 | J12: 1006 | L12: 90 | M12: 30 | O12: 77 | P12: 26 | R12: 75 | S12: 25 | U12: 0 | V12: 0 | AA12: 1001 | AB12: 1002
A13: 100009 | B13: 100009 | C13: -1 | D13: 1005 | I13: 1005 | AA13: 5006
AA14: 5007
A15: 1002 | B15: =LevelbattleConfig!B11 -> 主线-击败结界兽 | C15: =VLOOKUP(A15,LevelbattleConfig!A:R,18,FALSE) -> 9 | D15: 9002 | I15: 9002 | AA15: 9006
A16: =A15+1 -> 1003 | B16: =LevelbattleConfig!B12 -> 主线-击败痴道人 | C16: =VLOOKUP(A16,LevelbattleConfig!A:R,18,FALSE) -> 16 | D16: 9001 | I16: 9001 | AA16: 9004
A17: =A16+1 -> 1004 | B17: =LevelbattleConfig!B13 -> 主线-妖兽横行 | C17: =VLOOKUP(A17,LevelbattleConfig!A:R,18,FALSE) -> 25 | D17: 1008 | I17: 1008
A18: 1005 | B18: =LevelbattleConfig!B14 -> 主线-击败后山小妖 | C18: =VLOOKUP(A18,LevelbattleConfig!A:R,18,FALSE) -> 46 | D18: 1008 | I18: 1008
A19: 1006 | B19: =LevelbattleConfig!B15 -> 主线-击败夜袭的妖兽 | C19: =VLOOKUP(A19,LevelbattleConfig!A:R,18,FALSE) -> 51 | D19: 5006 | I19: 5006
A20: 1007 | B20: =LevelbattleConfig!B16 -> 主线-击败峰顶的妖王 | C20: =VLOOKUP(A20,LevelbattleConfig!A:R,18,FALSE) -> 56 | D20: 5007 | I20: 5007
A21: 1008 | B21: =LevelbattleConfig!B17 -> 主线-击败仙山的阵眼妖兽 | C21: =VLOOKUP(A21,LevelbattleConfig!A:R,18,FALSE) -> 86
A22: 1009 | B22: =LevelbattleConfig!B18 -> 主线-击杀灵兽获得天肥 | C22: =VLOOKUP(A22,LevelbattleConfig!A:R,18,FALSE) -> 101 | D22: 9002 | I22: 9002
A23: 1010 | B23: =LevelbattleConfig!B19 -> 主线-击败小麻雀的幻影 | C23: =VLOOKUP(A23,LevelbattleConfig!A:R,18,FALSE) -> 121 | D23: 9002 | I23: 9002
A24: =A23+1 -> 1011 | B24: =LevelbattleConfig!B20 -> 主线-击败痴道人的幻影 | C24: =VLOOKUP(A24,LevelbattleConfig!A:R,18,FALSE) -> 121 | D24: 9001 | I24: 9001
A25: 1012 | B25: =LevelbattleConfig!B21 -> 主线-樗木之灵的幻影 | C25: =VLOOKUP(A25,LevelbattleConfig!A:R,18,FALSE) -> 121 | D25: 9004 | I25: 9004
A26: 1013 | B26: =LevelbattleConfig!B22 -> 主线-击败心魔 | C26: =VLOOKUP(A26,LevelbattleConfig!A:R,18,FALSE) -> 141 | D26: 5007 | I26: 5007
A27: 1014 | B27: =LevelbattleConfig!B23 -> 主线-击败北海妖兽2 | C27: =VLOOKUP(A27,LevelbattleConfig!A:R,18,FALSE) -> 151 | D27: 1008;1006 | E27: 80;40 | F27: 72;36 | G27: 67;33 | H27: 0;0 | I27: 1008 | J27: 1006 | L27: 80 | M27: 40 | O27: 72 | P27: 36 | R27: 67 | S27: 33 | U27: 0 | V27: 0
A28: 1015 | B28: =LevelbattleConfig!B24 -> 主线-击败北海妖兽1 | C28: =VLOOKUP(A28,LevelbattleConfig!A:R,18,FALSE) -> 25 | D28: =_xlfn.TEXTJOIN(";",1,I28:K28) -> 1008;1006 | E28: =_xlfn.TEXTJOIN(";",1,L28:N28) -> 80;40 | F28: =_xlfn.TEXTJOIN(";",1,O28:Q28) -> 72;36 | G28: =_xlfn.TEXTJOIN(";",1,R28:T28) -> 67;33 | H28: =_xlfn.TEXTJOIN(";",1,U28:W28) -> 0;0 | I28: 1008 | J28: 1006 | L28: 80 | M28: 40 | O28: 72 | P28: 36 | R28: 67 | S28: 33 | U28: 0 | V28: 0
A29: 1016 | B29: =LevelbattleConfig!B25 -> 主线-与樗木之灵切磋 | C29: =VLOOKUP(A29,LevelbattleConfig!A:R,18,FALSE) -> 69 | D29: =_xlfn.TEXTJOIN(";",1,I29:K29) -> 9004 | E29: =_xlfn.TEXTJOIN(";",1,L29:N29) ->  | F29: =_xlfn.TEXTJOIN(";",1,O29:Q29) ->  | G29: =_xlfn.TEXTJOIN(";",1,R29:T29) ->  | H29: =_xlfn.TEXTJOIN(";",1,U29:W29) ->  | I29: 9004
A31: 2001 | B31: 命运峰-第1层 | C31: 40;40 | D31: 5001;1001 | E31: 70;30 | H31: 70;30 | I31: 5001 | J31: 1001 | L31: 70 | M31: 30 | U31: 70 | V31: 30
A32: 2002 | B32: 命运峰-第2层 | C32: 50;50 | D32: 5002;1002 | E32: 70;30 | H32: 70;30 | I32: 5002 | J32: 1002 | L32: 70 | M32: 30 | U32: 70 | V32: 30
A33: 2003 | B33: 命运峰-第3层 | C33: 60;60 | D33: 5003;1003 | E33: 70;30 | H33: 70;30 | I33: 5003 | J33: 1003 | L33: 70 | M33: 30 | U33: 70 | V33: 30
A34: 2004 | B34: 命运峰-第4层 | C34: 70;70 | D34: 5004;1004 | E34: 70;30 | H34: 70;30 | I34: 5004 | J34: 1004 | L34: 70 | M34: 30 | U34: 70 | V34: 30
A35: 2005 | B35: 命运峰-第5层 | C35: 80;80 | D35: 5005;1005 | E35: 70;30 | H35: 70;30 | I35: 5005 | J35: 1005 | L35: 70 | M35: 30 | U35: 70 | V35: 30
A36: 2006 | B36: 命运峰-第6层 | C36: 90 | D36: 5001;1001 | E36: 70;30 | H36: 70;30 | I36: 5001 | J36: 1001 | L36: 70 | M36: 30 | U36: 70 | V36: 30
A37: 2007 | B37: 命运峰-第7层 | C37: 100 | D37: 5002;1002 | E37: 70;30 | H37: 70;30 | I37: 5002 | J37: 1002 | L37: 70 | M37: 30 | U37: 70 | V37: 30
A38: 2008 | B38: 命运峰-第8层 | C38: 110 | D38: 5003;1003 | E38: 70;30 | H38: 70;30 | I38: 5003 | J38: 1003 | L38: 70 | M38: 30 | U38: 70 | V38: 30
A39: 2009 | B39: 命运峰-第9层 | C39: 120 | D39: 5004;1004 | E39: 70;30 | H39: 70;30 | I39: 5004 | J39: 1004 | L39: 70 | M39: 30 | U39: 70 | V39: 30
A40: 2010 | B40: 命运峰-第10层 | C40: 130 | D40: 5005;1005 | E40: 70;30 | H40: 70;30 | I40: 5005 | J40: 1005 | L40: 70 | M40: 30 | U40: 70 | V40: 30
A41: 2011 | B41: 命运峰-第11层 | C41: 140 | D41: 5001;1001 | E41: 70;30 | H41: 70;30 | I41: 5001 | J41: 1001 | L41: 70 | M41: 30 | U41: 70 | V41: 30
A42: 2012 | B42: 命运峰-第12层 | C42: 150 | D42: 5002;1002 | E42: 70;30 | H42: 70;30 | I42: 5002 | J42: 1002 | L42: 70 | M42: 30 | U42: 70 | V42: 30
A43: 2013 | B43: 命运峰-第13层 | C43: 160 | D43: 5003;1003 | E43: 70;30 | H43: 70;30 | I43: 5003 | J43: 1003 | L43: 70 | M43: 30 | U43: 70 | V43: 30
A44: 2014 | B44: 命运峰-第14层 | C44: 170 | D44: 5004;1004 | E44: 70;30 | H44: 70;30 | I44: 5004 | J44: 1004 | L44: 70 | M44: 30 | U44: 70 | V44: 30
A45: 2015 | B45: 命运峰-第15层 | C45: 180 | D45: 5005;1005 | E45: 70;30 | H45: 70;30 | I45: 5005 | J45: 1005 | L45: 70 | M45: 30 | U45: 70 | V45: 30
A46: 2016 | B46: 命运峰-第16层 | C46: 190 | D46: 5001;1001 | E46: 70;30 | H46: 70;30 | I46: 5001 | J46: 1001 | L46: 70 | M46: 30 | U46: 70 | V46: 30
A47: 2017 | B47: 命运峰-第17层 | C47: 200 | D47: 5002;1002 | E47: 70;30 | H47: 70;30 | I47: 5002 | J47: 1002 | L47: 70 | M47: 30 | U47: 70 | V47: 30
A48: 2018 | B48: 命运峰-第18层 | C48: 210 | D48: 5003;1003 | E48: 70;30 | H48: 70;30 | I48: 5003 | J48: 1003 | L48: 70 | M48: 30 | U48: 70 | V48: 30
A49: 2019 | B49: 命运峰-第19层 | C49: 220 | D49: 5004;1004 | E49: 70;30 | H49: 70;30 | I49: 5004 | J49: 1004 | L49: 70 | M49: 30 | U49: 70 | V49: 30
A50: 2020 | B50: 命运峰-第20层 | C50: 230 | D50: 5005;1005 | E50: 70;30 | H50: 70;30 | I50: 5005 | J50: 1005 | L50: 70 | M50: 30 | U50: 70 | V50: 30
A52: 3001 | B52: =LevelbattleConfig!B48 -> 道侣雀灵儿-击败风妖 | C52: =VLOOKUP(A52,LevelbattleConfig!A:R,18,FALSE) -> 15 | D52: =_xlfn.TEXTJOIN(";",1,I52:K52) -> 1005 | E52: =_xlfn.TEXTJOIN(";",1,L52:N52) ->  | F52: =_xlfn.TEXTJOIN(";",1,O52:Q52) ->  | G52: =_xlfn.TEXTJOIN(";",1,R52:T52) ->  | H52: =_xlfn.TEXTJOIN(";",1,U52:W52) ->  | I52: 1005
A53: 3002 | B53: =LevelbattleConfig!B49 -> 道侣雀灵儿-击败大风妖兽 | C53: =VLOOKUP(A53,LevelbattleConfig!A:R,18,FALSE) -> 25 | D53: =_xlfn.TEXTJOIN(";",1,I53:K53) -> 9006 | E53: =_xlfn.TEXTJOIN(";",1,L53:N53) ->  | F53: =_xlfn.TEXTJOIN(";",1,O53:Q53) ->  | G53: =_xlfn.TEXTJOIN(";",1,R53:T53) ->  | H53: =_xlfn.TEXTJOIN(";",1,U53:W53) ->  | I53: 9006
A54: =A53+1 -> 3003 | B54: =LevelbattleConfig!B50 -> 道侣云枝-击败风妖 | C54: =VLOOKUP(A54,LevelbattleConfig!A:R,18,FALSE) -> 20 | D54: =_xlfn.TEXTJOIN(";",1,I54:K54) -> 1005 | E54: =_xlfn.TEXTJOIN(";",1,L54:N54) ->  | F54: =_xlfn.TEXTJOIN(";",1,O54:Q54) ->  | G54: =_xlfn.TEXTJOIN(";",1,R54:T54) ->  | H54: =_xlfn.TEXTJOIN(";",1,U54:W54) ->  | I54: 1005
A55: 3004 | B55: =LevelbattleConfig!B51 -> 道侣云枝-击败风妖2 | C55: =VLOOKUP(A55,LevelbattleConfig!A:R,18,FALSE) -> 30 | D55: =_xlfn.TEXTJOIN(";",1,I55:K55) -> 1005 | E55: =_xlfn.TEXTJOIN(";",1,L55:N55) ->  | F55: =_xlfn.TEXTJOIN(";",1,O55:Q55) ->  | G55: =_xlfn.TEXTJOIN(";",1,R55:T55) ->  | H55: =_xlfn.TEXTJOIN(";",1,U55:W55) ->  | I55: 1005
A56: 3005 | B56: =LevelbattleConfig!B52 -> 道侣云枝-击败风妖3 | C56: =VLOOKUP(A56,LevelbattleConfig!A:R,18,FALSE) -> 30 | D56: 5003 | I56: 5003
A57: 3006 | B57: =LevelbattleConfig!B53 -> 道侣云枝-击败风妖4 | C57: =VLOOKUP(A57,LevelbattleConfig!A:R,18,FALSE) -> 40 | D57: =_xlfn.TEXTJOIN(";",1,I57:K57) -> 5003 | E57: =_xlfn.TEXTJOIN(";",1,L57:N57) ->  | F57: =_xlfn.TEXTJOIN(";",1,O57:Q57) ->  | G57: =_xlfn.TEXTJOIN(";",1,R57:T57) ->  | H57: =_xlfn.TEXTJOIN(";",1,U57:W57) ->  | I57: 5003
A58: 3007 | B58: =LevelbattleConfig!B54 -> 道侣云枝-击败风妖4 | C58: =VLOOKUP(A58,LevelbattleConfig!A:R,18,FALSE) -> 60 | D58: =_xlfn.TEXTJOIN(";",1,I58:K58) -> 5003 | E58: =_xlfn.TEXTJOIN(";",1,L58:N58) ->  | F58: =_xlfn.TEXTJOIN(";",1,O58:Q58) ->  | G58: =_xlfn.TEXTJOIN(";",1,R58:T58) ->  | H58: =_xlfn.TEXTJOIN(";",1,U58:W58) ->  | I58: 5003
A59: 3008 | B59: =LevelbattleConfig!B55 -> 道侣云枝-击败风妖5 | C59: =VLOOKUP(A59,LevelbattleConfig!A:R,18,FALSE) -> 60 | D59: =_xlfn.TEXTJOIN(";",1,I59:K59) -> 9002 | E59: =_xlfn.TEXTJOIN(";",1,L59:N59) ->  | F59: =_xlfn.TEXTJOIN(";",1,O59:Q59) ->  | G59: =_xlfn.TEXTJOIN(";",1,R59:T59) ->  | H59: =_xlfn.TEXTJOIN(";",1,U59:W59) ->  | I59: 9002
A60: 3009 | B60: =LevelbattleConfig!B56 -> 道侣婉溪-击败抢走玉佩的小妖 | C60: =VLOOKUP(A60,LevelbattleConfig!A:R,18,FALSE) -> 120 | D60: =_xlfn.TEXTJOIN(";",1,I60:K60) -> 5003 | E60: =_xlfn.TEXTJOIN(";",1,L60:N60) ->  | F60: =_xlfn.TEXTJOIN(";",1,O60:Q60) ->  | G60: =_xlfn.TEXTJOIN(";",1,R60:T60) ->  | H60: =_xlfn.TEXTJOIN(";",1,U60:W60) ->  | I60: 5003
A61: 3010 | B61: =LevelbattleConfig!B57 -> 道侣婉溪-击败溪边水灵 | C61: =VLOOKUP(A61,LevelbattleConfig!A:R,18,FALSE) -> 130 | D61: =_xlfn.TEXTJOIN(";",1,I61:K61) -> 5002 | E61: =_xlfn.TEXTJOIN(";",1,L61:N61) ->  | F61: =_xlfn.TEXTJOIN(";",1,O61:Q61) ->  | G61: =_xlfn.TEXTJOIN(";",1,R61:T61) ->  | H61: =_xlfn.TEXTJOIN(";",1,U61:W61) ->  | I61: 5002
A62: 3011 | B62: =LevelbattleConfig!B58 -> 道侣许由-击败守护灵草的小妖 | C62: =VLOOKUP(A62,LevelbattleConfig!A:R,18,FALSE) -> 130 | D62: =_xlfn.TEXTJOIN(";",1,I62:K62) -> 1006 | E62: =_xlfn.TEXTJOIN(";",1,L62:N62) ->  | F62: =_xlfn.TEXTJOIN(";",1,O62:Q62) ->  | G62: =_xlfn.TEXTJOIN(";",1,R62:T62) ->  | H62: =_xlfn.TEXTJOIN(";",1,U62:W62) ->  | I62: 1006
A63: 3012 | B63: =LevelbattleConfig!B59 -> 道侣许由-击败秘境灵草守卫 | C63: =VLOOKUP(A63,LevelbattleConfig!A:R,18,FALSE) -> 150 | D63: 5005 | I63: 5005
A64: 3013 | B64: =LevelbattleConfig!B60 -> 道侣疯道人-击败果园守卫 | C64: =VLOOKUP(A64,LevelbattleConfig!A:R,18,FALSE) -> 160 | D64: =_xlfn.TEXTJOIN(";",1,I64:K64) -> 5001 | E64: =_xlfn.TEXTJOIN(";",1,L64:N64) ->  | F64: =_xlfn.TEXTJOIN(";",1,O64:Q64) ->  | G64: =_xlfn.TEXTJOIN(";",1,R64:T64) ->  | H64: =_xlfn.TEXTJOIN(";",1,U64:W64) ->  | I64: 5001
A65: 3014 | B65: =LevelbattleConfig!B61 -> 道侣疯道人-帮助疯道人驱妖 | C65: =VLOOKUP(A65,LevelbattleConfig!A:R,18,FALSE) -> 170 | D65: =_xlfn.TEXTJOIN(";",1,I65:K65) -> 5004 | E65: =_xlfn.TEXTJOIN(";",1,L65:N65) ->  | F65: =_xlfn.TEXTJOIN(";",1,O65:Q65) ->  | G65: =_xlfn.TEXTJOIN(";",1,R65:T65) ->  | H65: =_xlfn.TEXTJOIN(";",1,U65:W65) ->  | I65: 5004
A66: 3015 | B66: =LevelbattleConfig!B62 -> 道侣疯道人-击败疯道人 | C66: =VLOOKUP(A66,LevelbattleConfig!A:R,18,FALSE) -> 190 | D66: =_xlfn.TEXTJOIN(";",1,I66:K66) -> 9001 | E66: =_xlfn.TEXTJOIN(";",1,L66:N66) ->  | F66: =_xlfn.TEXTJOIN(";",1,O66:Q66) ->  | G66: =_xlfn.TEXTJOIN(";",1,R66:T66) ->  | H66: =_xlfn.TEXTJOIN(";",1,U66:W66) ->  | I66: 9001
A68: 10001 | B68: =LevelbattleConfig!B64 -> 引导 -开局第一场战斗 | C68: 205 | D68: =_xlfn.TEXTJOIN(";",1,I68:K68) -> 9005 | E68: =_xlfn.TEXTJOIN(";",1,L68:N68) ->  | F68: =_xlfn.TEXTJOIN(";",1,O68:Q68) ->  | G68: =_xlfn.TEXTJOIN(";",1,R68:T68) ->  | H68: =_xlfn.TEXTJOIN(";",1,U68:W68) ->  | I68: 9005 | AA68: 9006
A70: 4001 | B70: =VLOOKUP(A70,LevelbattleConfig!A:B,2,FALSE) -> 支线-海岸异象-妖物调查 | C70: =VLOOKUP(A70,LevelbattleConfig!A:R,18,FALSE) -> 1 | D70: =_xlfn.TEXTJOIN(";",1,I70:K70) -> 1005 | E70: =_xlfn.TEXTJOIN(";",1,L70:N70) ->  | F70: =_xlfn.TEXTJOIN(";",1,O70:Q70) ->  | G70: =_xlfn.TEXTJOIN(";",1,R70:T70) ->  | H70: =_xlfn.TEXTJOIN(";",1,U70:W70) ->  | I70: 1005
A71: 4002 | B71: =VLOOKUP(A71,LevelbattleConfig!A:B,2,FALSE) -> 支线-幽魂-幽魂石守护兽 | C71: =VLOOKUP(A71,LevelbattleConfig!A:R,18,FALSE) -> 1 | D71: =_xlfn.TEXTJOIN(";",1,I71:K71) -> 1006 | E71: =_xlfn.TEXTJOIN(";",1,L71:N71) ->  | F71: =_xlfn.TEXTJOIN(";",1,O71:Q71) ->  | G71: =_xlfn.TEXTJOIN(";",1,R71:T71) ->  | H71: =_xlfn.TEXTJOIN(";",1,U71:W71) ->  | I71: 1006
A72: 4003 | B72: =VLOOKUP(A72,LevelbattleConfig!A:B,2,FALSE) -> 支线-馨儿-迷雾妖怪 | C72: =VLOOKUP(A72,LevelbattleConfig!A:R,18,FALSE) -> 5 | D72: 1007 | I72: 1007
A73: 4004 | B73: =VLOOKUP(A73,LevelbattleConfig!A:B,2,FALSE) -> 支线-馨儿-发现信使 | C73: =VLOOKUP(A73,LevelbattleConfig!A:R,18,FALSE) -> 5 | D73: =_xlfn.TEXTJOIN(";",1,I73:K73) -> 1008 | E73: =_xlfn.TEXTJOIN(";",1,L73:N73) ->  | F73: =_xlfn.TEXTJOIN(";",1,O73:Q73) ->  | G73: =_xlfn.TEXTJOIN(";",1,R73:T73) ->  | H73: =_xlfn.TEXTJOIN(";",1,U73:W73) ->  | I73: 1008
A74: 4005 | B74: =VLOOKUP(A74,LevelbattleConfig!A:B,2,FALSE) -> 支线-馨儿-发现信使 | C74: =VLOOKUP(A74,LevelbattleConfig!A:R,18,FALSE) -> 5 | D74: 1001 | I74: 1001
A75: 4006 | B75: =VLOOKUP(A75,LevelbattleConfig!A:B,2,FALSE) -> 支线-馨儿-风灵鸟的宝藏 | C75: =VLOOKUP(A75,LevelbattleConfig!A:R,18,FALSE) -> 11 | D75: 1005 | I75: 1005
A76: 4007 | B76: =VLOOKUP(A76,LevelbattleConfig!A:B,2,FALSE) -> 支线-馨儿-浮岛灵泉的净化 | C76: =VLOOKUP(A76,LevelbattleConfig!A:R,18,FALSE) -> 11 | D76: 1006 | I76: 1006
A77: 4008 | B77: =VLOOKUP(A77,LevelbattleConfig!A:B,2,FALSE) -> 支线-馨儿-浮岛盗修的阴谋 | C77: =VLOOKUP(A77,LevelbattleConfig!A:R,18,FALSE) -> 11 | D77: 1007 | I77: 1007
A78: 4009 | B78: =VLOOKUP(A78,LevelbattleConfig!A:B,2,FALSE) -> 支线-柳轻烟-找到血海宗的人 | C78: =VLOOKUP(A78,LevelbattleConfig!A:R,18,FALSE) -> 21 | D78: 1008 | I78: 1008
A79: 4010 | B79: =VLOOKUP(A79,LevelbattleConfig!A:B,2,FALSE) -> 支线-柳轻烟-找到血海宗的人2 | C79: =VLOOKUP(A79,LevelbattleConfig!A:R,18,FALSE) -> 21 | D79: =_xlfn.TEXTJOIN(";",1,I79:K79) -> 1001 | E79: =_xlfn.TEXTJOIN(";",1,L79:N79) ->  | F79: =_xlfn.TEXTJOIN(";",1,O79:Q79) ->  | G79: =_xlfn.TEXTJOIN(";",1,R79:T79) ->  | H79: =_xlfn.TEXTJOIN(";",1,U79:W79) ->  | I79: 1001
A80: 4011 | B80: =VLOOKUP(A80,LevelbattleConfig!A:B,2,FALSE) -> 支线-馨儿-灵花 | C80: =VLOOKUP(A80,LevelbattleConfig!A:R,18,FALSE) -> 31 | D80: 1005 | I80: 1005
A81: 4012 | B81: =VLOOKUP(A81,LevelbattleConfig!A:B,2,FALSE) -> 支线-馨儿-散修劫掠 | C81: =VLOOKUP(A81,LevelbattleConfig!A:R,18,FALSE) -> 31 | D81: 1006 | I81: 1006
A82: 4013 | B82: =VLOOKUP(A82,LevelbattleConfig!A:B,2,FALSE) -> 支线-馨儿-散修劫掠2 | C82: =VLOOKUP(A82,LevelbattleConfig!A:R,18,FALSE) -> 31 | D82: 1007 | I82: 1007
A83: 4014 | B83: =VLOOKUP(A83,LevelbattleConfig!A:B,2,FALSE) -> 支线-楚云缪-青狼散人 | C83: =VLOOKUP(A83,LevelbattleConfig!A:R,18,FALSE) -> 31 | D83: 1008 | I83: 1008
A84: 4015 | B84: =VLOOKUP(A84,LevelbattleConfig!A:B,2,FALSE) -> 支线-血海宗的掠夺-血海宗的掠夺 | C84: =VLOOKUP(A84,LevelbattleConfig!A:R,18,FALSE) -> 41 | D84: 1001 | I84: 1001
A85: 4016 | B85: =VLOOKUP(A85,LevelbattleConfig!A:B,2,FALSE) -> 支线-林风-逃离追杀 | C85: =VLOOKUP(A85,LevelbattleConfig!A:R,18,FALSE) -> 41 | D85: 1005 | I85: 1005
A86: 4017 | B86: =VLOOKUP(A86,LevelbattleConfig!A:B,2,FALSE) -> 支线-林风-血海宗弟子 | C86: =VLOOKUP(A86,LevelbattleConfig!A:R,18,FALSE) -> 41 | D86: 1006 | I86: 1006
A87: 4018 | B87: =VLOOKUP(A87,LevelbattleConfig!A:B,2,FALSE) -> 支线-林风-血海宗弟子 | C87: =VLOOKUP(A87,LevelbattleConfig!A:R,18,FALSE) -> 41 | D87: =_xlfn.TEXTJOIN(";",1,I87:K87) -> 1007 | E87: =_xlfn.TEXTJOIN(";",1,L87:N87) ->  | F87: =_xlfn.TEXTJOIN(";",1,O87:Q87) ->  | G87: =_xlfn.TEXTJOIN(";",1,R87:T87) ->  | H87: =_xlfn.TEXTJOIN(";",1,U87:W87) ->  | I87: 1007
A88: 4019 | B88: =VLOOKUP(A88,LevelbattleConfig!A:B,2,FALSE) -> 支线-林风-血海宗弟子 | C88: =VLOOKUP(A88,LevelbattleConfig!A:R,18,FALSE) -> 41 | D88: 1008 | I88: 1008
A89: 4020 | B89: =VLOOKUP(A89,LevelbattleConfig!A:B,2,FALSE) -> 支线-林风后续-夺晶之战 | C89: =VLOOKUP(A89,LevelbattleConfig!A:R,18,FALSE) -> 61 | D89: 1001 | I89: 1001
A90: 4021 | B90: =VLOOKUP(A90,LevelbattleConfig!A:B,2,FALSE) -> 支线-林风后续-夺晶之战 | C90: =VLOOKUP(A90,LevelbattleConfig!A:R,18,FALSE) -> 61 | D90: 1005 | I90: 1005
A91: 4022 | B91: =VLOOKUP(A91,LevelbattleConfig!A:B,2,FALSE) -> 支线-林风后续-夺晶之战2-援军 | C91: =VLOOKUP(A91,LevelbattleConfig!A:R,18,FALSE) -> 61 | D91: 1006 | I91: 1006
A92: 4023 | B92: =VLOOKUP(A92,LevelbattleConfig!A:B,2,FALSE) -> 支线-林风-消灭妖邪 | C92: =VLOOKUP(A92,LevelbattleConfig!A:R,18,FALSE) -> 81 | D92: 1007 | I92: 1007
A93: 4024 | B93: =VLOOKUP(A93,LevelbattleConfig!A:B,2,FALSE) -> 支线-仙山异样-消灭仙山西边的妖物 | C93: =VLOOKUP(A93,LevelbattleConfig!A:R,18,FALSE) -> 111 | D93: 1008 | I93: 1008
A94: 4025 | B94: =VLOOKUP(A94,LevelbattleConfig!A:B,2,FALSE) -> 支线-仙山异样-仙山异样的秘密 | C94: =VLOOKUP(A94,LevelbattleConfig!A:R,18,FALSE) -> 131 | D94: 1001 | I94: 1001
A96: 5001 | B96: =VLOOKUP(A96,LevelbattleConfig!A:B,2,FALSE) -> 通用-法宝掉落-品质1 | C96: =VLOOKUP(A96,LevelbattleConfig!A:P,16,FALSE) -> -1 | D96: =_xlfn.TEXTJOIN(";",1,I96:K96) -> 1005 | E96: =_xlfn.TEXTJOIN(";",1,L96:N96) -> 60 | F96: =_xlfn.TEXTJOIN(";",1,O96:Q96) -> 60 | G96: =_xlfn.TEXTJOIN(";",1,R96:T96) -> 60 | H96: =_xlfn.TEXTJOIN(";",1,U96:W96) ->  | I96: 1005 | L96: 60 | O96: 60 | R96: 60
A97: 5002 | B97: =VLOOKUP(A97,LevelbattleConfig!A:B,2,FALSE) -> 通用-法宝掉落-品质2 | C97: =VLOOKUP(A97,LevelbattleConfig!A:P,16,FALSE) -> -1 | D97: 1006 | E97: =_xlfn.TEXTJOIN(";",1,L97:N97) -> 70 | F97: =_xlfn.TEXTJOIN(";",1,O97:Q97) -> 70 | G97: =_xlfn.TEXTJOIN(";",1,R97:T97) -> 70 | H97: =_xlfn.TEXTJOIN(";",1,U97:W97) ->  | I97: 1006 | L97: 70 | O97: 70 | R97: 70
A98: 5003 | B98: =VLOOKUP(A98,LevelbattleConfig!A:B,2,FALSE) -> 通用-法宝掉落-品质3 | C98: =VLOOKUP(A98,LevelbattleConfig!A:P,16,FALSE) -> -1 | D98: 1007 | E98: 80 | F98: 80 | G98: 80 | I98: 1007 | L98: 80 | O98: 80 | R98: 80
A99: 5004 | B99: =VLOOKUP(A99,LevelbattleConfig!A:B,2,FALSE) -> 通用-法宝掉落-品质4 | C99: =VLOOKUP(A99,LevelbattleConfig!A:P,16,FALSE) -> -1 | D99: 1008 | E99: 90 | F99: 90 | G99: 90 | I99: 1008 | L99: 90 | O99: 90 | R99: 90
A100: 5005 | B100: =VLOOKUP(A100,LevelbattleConfig!A:B,2,FALSE) -> 通用-法宝掉落-品质5 | C100: =VLOOKUP(A100,LevelbattleConfig!A:P,16,FALSE) -> -1 | D100: 1001 | E100: 100 | F100: 1000 | G100: 100 | I100: 1001 | L100: 100 | O100: 1000 | R100: 100
A101: 5006 | B101: =VLOOKUP(A101,LevelbattleConfig!A:B,2,FALSE) -> 通用-功法掉落-品质1 | C101: =VLOOKUP(A101,LevelbattleConfig!A:P,16,FALSE) -> -1 | D101: 1005 | E101: 60 | F101: 60 | G101: 60 | I101: 1005 | L101: 60 | O101: 60 | R101: 60
A102: 5007 | B102: =VLOOKUP(A102,LevelbattleConfig!A:B,2,FALSE) -> 通用-功法掉落-品质2 | C102: =VLOOKUP(A102,LevelbattleConfig!A:P,16,FALSE) -> -1 | D102: 1006 | E102: 70 | F102: 70 | G102: 70 | I102: 1006 | L102: 70 | O102: 70 | R102: 70
A103: 5008 | B103: =VLOOKUP(A103,LevelbattleConfig!A:B,2,FALSE) -> 通用-功法掉落-品质3 | C103: =VLOOKUP(A103,LevelbattleConfig!A:P,16,FALSE) -> -1 | D103: 1007 | E103: 80 | F103: 80 | G103: 80 | I103: 1007 | L103: 80 | O103: 80 | R103: 80
A104: 5009 | B104: =VLOOKUP(A104,LevelbattleConfig!A:B,2,FALSE) -> 通用-功法掉落-品质4 | C104: =VLOOKUP(A104,LevelbattleConfig!A:P,16,FALSE) -> -1 | D104: 1008 | E104: 90 | F104: 90 | G104: 90 | I104: 1008 | L104: 90 | O104: 90 | R104: 90
A105: 5010 | B105: =VLOOKUP(A105,LevelbattleConfig!A:B,2,FALSE) -> 通用-功法掉落-品质5 | C105: =VLOOKUP(A105,LevelbattleConfig!A:P,16,FALSE) -> -1 | D105: 1001 | E105: 100 | F105: 1000 | G105: 100 | I105: 1001 | L105: 100 | O105: 1000 | R105: 100

Sheet 强度验算
B1: 生存修正 | C1: 生命 | D1: 攻击修正 | E1: 对拼修正 | F1: 秒伤 | G1: 怪物存活时间 | I1: 玩家打怪物 | L1: 怪物打玩家
I2: 阶段1 | J2: 阶段2 | L2: 阶段1 | M2: 阶段2
A3: 怪物1 | C3: 2000 | F3: 100 | G3: =C3/100 -> 20 | I3: =G3*F3 -> 2000
G5: 1.2 | I5: =SUM(I6:I7) -> 1800 | J5: =SUM(J6:J7) -> 600 | L5: =SUM(L6:L7) -> 1846.05 | M5: =SUM(M6:M7) -> 153.95 | N5: =SUM(L5:M5) -> 2000
A6: 主怪 | B6: 0.9 | C6: =C$3*$B6 -> 1800 | D6: 0.769 | E6: =B6/SUM(B$6:B$7) -> 0.75 | F6: =F$3*$D6 -> 76.9 | G6: =C6/F$3 -> 18 | H6: =B6/D6 -> 1.170351105 | I6: =G6*F$3 -> 1800 | L6: =F6*G6 -> 1384.2
A7: 辅怪1 | B7: =C7/C$3 -> 0.3 | C7: =J7 -> 600 | D7: =F7/F$3 -> 0.2565833333 | E7: =B7/SUM(B$6:B$7) -> 0.25 | F7: =(C$3-L6)/G7 -> 25.65833333 | G7: =G$3*G5 -> 24 | H7: =B7/D7 -> 1.169210783 | J7: =F$3*(G7-G6) -> 600 | L7: =F7*G6 -> 461.85 | M7: =C$3-L5 -> 153.95
G9: =G5 -> 1.2 | I9: =SUM(I10:I11) -> 1600 | J9: =SUM(J10:J11) -> 800 | L9: =SUM(L10:L11) -> 1714.133333 | M9: =SUM(M10:M11) -> 285.8666667 | N9: =SUM(L9:M9) -> 2000
A10: 主怪 | B10: 0.8 | C10: =C$3*$B10 -> 1600 | D10: 0.714 | E10: =B10/SUM(B$10:B$11) -> 0.6666666667 | F10: =F$3*$D10 -> 71.4 | G10: =C10/F$3 -> 16 | H10: =B10/D10 -> 1.120448179 | I10: =G10*F$3 -> 1600 | L10: =F10*G10 -> 1142.4
A11: 辅怪1 | B11: =C11/C$3 -> 0.4 | C11: =J11 -> 800 | D11: =F11/F$3 -> 0.3573333333 | E11: =B11/SUM(B$10:B$11) -> 0.3333333333 | F11: =(C$3-L10)/G11 -> 35.73333333 | G11: =G$3*G9 -> 24 | H11: =B11/D11 -> 1.119402985 | J11: =F$3*(G11-G10) -> 800 | L11: =F11*G10 -> 571.7333333 | M11: =C$3-L9 -> 285.8666667
G13: =G5 -> 1.2 | I13: =SUM(I14:I15) -> 1400 | J13: =SUM(J14:J15) -> 1000 | L13: =SUM(L14:L15) -> 1541.166667 | M13: =SUM(M14:M15) -> 458.8333333 | N13: =SUM(L13:M13) -> 2000
A14: 主怪 | B14: 0.7 | C14: =C$3*$B14 -> 1400 | D14: 0.642 | E14: =B14/SUM(B$14:B$15) -> 0.5833333333 | F14: =F$3*$D14 -> 64.2 | G14: =C14/F$3 -> 14 | H14: =B14/D14 -> 1.090342679 | I14: =G14*F$3 -> 1400 | L14: =F14*G14 -> 898.8
A15: 辅怪1 | B15: =C15/C$3 -> 0.5 | C15: =J15 -> 1000 | D15: =F15/F$3 -> 0.4588333333 | E15: =B15/SUM(B$14:B$15) -> 0.4166666667 | F15: =(C$3-L14)/G15 -> 45.88333333 | G15: =G$3*G13 -> 24 | H15: =B15/D15 -> 1.089720305 | J15: =F$3*(G15-G14) -> 1000 | L15: =F15*G14 -> 642.3666667 | M15: =C$3-L13 -> 458.8333333
G17: =G5 -> 1.2 | I17: =SUM(I18:I19) -> 1200 | J17: =SUM(J18:J19) -> 1200 | L17: =SUM(L18:L19) -> 1333.6 | M17: =SUM(M18:M19) -> 666.4 | N17: =SUM(L17:M17) -> 2000
A18: 主怪 | B18: 0.6 | C18: =C$3*$B18 -> 1200 | D18: 0.556 | E18: =B18/SUM(B$18:B$19) -> 0.5 | F18: =F$3*$D18 -> 55.6 | G18: =C18/F$3 -> 12 | H18: =B18/D18 -> 1.079136691 | I18: =G18*F$3 -> 1200 | L18: =F18*G18 -> 667.2
A19: 辅怪1 | B19: =C19/C$3 -> 0.6 | C19: =J19 -> 1200 | D19: =F19/F$3 -> 0.5553333333 | E19: =B19/SUM(B$18:B$19) -> 0.5 | F19: =(C$3-L18)/G19 -> 55.53333333 | G19: =G$3*G17 -> 24 | H19: =B19/D19 -> 1.080432173 | J19: =F$3*(G19-G18) -> 1200 | L19: =F19*G18 -> 666.4 | M19: =C$3-L17 -> 666.4
G24: 1.3 | I24: =SUM(I25:I26) -> 1800 | J24: =SUM(J25:J26) -> 800 | L24: =SUM(L25:L26) -> 1810.523077 | M24: =SUM(M25:M26) -> 189.4769231 | N24: =SUM(L24:M24) -> 2000
A25: 主怪 | B25: 0.9 | C25: =C$3*$B25 -> 1800 | D25: 0.769 | F25: =F$3*$D25 -> 76.9 | G25: =C25/F$3 -> 18 | H25: =B25/D25 -> 1.170351105 | I25: =G25*F$3 -> 1800 | L25: =F25*G25 -> 1384.2
A26: 辅怪1 | B26: =C26/C$3 -> 0.4 | C26: =J26 -> 800 | D26: =F26/F$3 -> 0.2368461538 | F26: =(C$3-L25)/G26 -> 23.68461538 | G26: =G$3*G24 -> 26 | H26: =B26/D26 -> 1.688860019 | J26: =F$3*(G26-G25) -> 800 | L26: =F26*G25 -> 426.3230769 | M26: =C$3-L24 -> 189.4769231
G28: =G24 -> 1.3 | I28: =SUM(I29:I30) -> 1600 | J28: =SUM(J29:J30) -> 1000 | L28: =SUM(L29:L30) -> 1670.153846 | M28: =SUM(M29:M30) -> 329.8461538 | N28: =SUM(L28:M28) -> 2000
A29: 主怪 | B29: 0.8 | C29: =C$3*$B29 -> 1600 | D29: 0.714 | F29: =F$3*$D29 -> 71.4 | G29: =C29/F$3 -> 16 | H29: =B29/D29 -> 1.120448179 | I29: =G29*F$3 -> 1600 | L29: =F29*G29 -> 1142.4
A30: 辅怪1 | B30: =C30/C$3 -> 0.5 | C30: =J30 -> 1000 | D30: =F30/F$3 -> 0.3298461538 | F30: =(C$3-L29)/G30 -> 32.98461538 | G30: =G$3*G28 -> 26 | H30: =B30/D30 -> 1.515858209 | J30: =F$3*(G30-G29) -> 1000 | L30: =F30*G29 -> 527.7538462 | M30: =C$3-L28 -> 329.8461538
G32: =G24 -> 1.3 | I32: =SUM(I33:I34) -> 1400 | J32: =SUM(J33:J34) -> 1200 | L32: =SUM(L33:L34) -> 1491.753846 | M32: =SUM(M33:M34) -> 508.2461538 | N32: =SUM(L32:M32) -> 2000
A33: 主怪 | B33: 0.7 | C33: =C$3*$B33 -> 1400 | D33: 0.642 | F33: =F$3*$D33 -> 64.2 | G33: =C33/F$3 -> 14 | H33: =B33/D33 -> 1.090342679 | I33: =G33*F$3 -> 1400 | L33: =F33*G33 -> 898.8
A34: 辅怪1 | B34: =C34/C$3 -> 0.6 | C34: =J34 -> 1200 | D34: =F34/F$3 -> 0.4235384615 | F34: =(C$3-L33)/G34 -> 42.35384615 | G34: =G$3*G32 -> 26 | H34: =B34/D34 -> 1.416636397 | J34: =F$3*(G34-G33) -> 1200 | L34: =F34*G33 -> 592.9538462 | M34: =C$3-L32 -> 508.2461538
G36: =G24 -> 1.3 | I36: =SUM(I37:I38) -> 1200 | J36: =SUM(J37:J38) -> 1400 | L36: =SUM(L37:L38) -> 1282.338462 | M36: =SUM(M37:M38) -> 717.6615385 | N36: =SUM(L36:M36) -> 2000
A37: 主怪 | B37: 0.6 | C37: =C$3*$B37 -> 1200 | D37: 0.556 | F37: =F$3*$D37 -> 55.6 | G37: =C37/F$3 -> 12 | H37: =B37/D37 -> 1.079136691 | I37: =G37*F$3 -> 1200 | L37: =F37*G37 -> 667.2
A38: 辅怪1 | B38: =C38/C$3 -> 0.7 | C38: =J38 -> 1400 | D38: =F38/F$3 -> 0.5126153846 | F38: =(C$3-L37)/G38 -> 51.26153846 | G38: =G$3*G36 -> 26 | H38: =B38/D38 -> 1.365546218 | J38: =F$3*(G38-G37) -> 1400 | L38: =F38*G37 -> 615.1384615 | M38: =C$3-L36 -> 717.6615385
